[Event "4NCL Div 1 2024-25"]
[Site "England"]
[Date "2025.01.25"]
[Round "3.44"]
[White "Foisor, Mihaela-Veronica"]
[Black "Turner, Max N"]
[Result "0-1"]
[Annotator "TA"]
[ECO "D27"]
[WhiteElo "2156"]
[BlackElo "2247"]
[PlyCount "116"]
[EventDate "2024.11.23"]
[EventType "team-tourn"]
[EventCountry "ENG"]
[SourceTitle "playchess.com"]
[Source "ChessBase"]
[SourceQuality "1"]
[TimeControl "40/6000+30:3000+30"]

{[%evp 21,116,0,0,0,31,35,35,40,132,131,137,127,203,91,72,87,96,89,94,71,85,89,91,75,114,93,102,101,207,214,226,231,236,233,372,312,322,246,255,182,176,138,129,106,95,95,77,11,11,11,101,111,107,105,99,102,104,98,94,81,94,82,78,68,102,8,11,-25,-22,-1162,-1203,-1302,-987,-1302,-1061,-1302,-808,-29955,-6412,-29967,-29968,-29968,-29970,-29970,-29970,-29971,-29972,-29971,-29973,-29972,-29974,-29974,-29975,-29974,-29975,-29981,-29982]} 1. c4 {[%emt 0:10:06]} e6 {[%emt 0:10:08]} 2. Nc3 {[%emt 0:00:07]} d5 {[%emt 0:00:06]} 3. d4 {[%emt 0:00:07]} Nf6 {[%emt 0:00:15]} 4. Nf3 {[%emt 0:00:21]} c6 {[%emt 0:00:25]} 5. e3 {[%emt 0:00:05]} Nbd7 {[%emt 0:00:22]} 6. Bd3 {[%emt 0:00:26]} dxc4 {[%emt 0:00:40]} 7. Bxc4 {[%emt 0:00:07]} b5 {[%emt 0:00:11]} 8. Be2 {[%emt 0:00:33]} Bb7 {[%emt 0:03:53]} 9. O-O {[%emt 0:00:16]} a6 {[%emt 0:00:53]} 10. a3 {[%emt 0:06:11][%cal Ba2a3,Ba3a4][%mdl 32]} c5 {[%emt 0:01:23]} 11. dxc5 {[%emt 0:03:14] 11.dxc5 has lost popularity.} Bxc5 {[%emt 0:08:29]} 12. b4 {[%emt 0:00:06] D27: Queen's Gambit Accepted: Classical main line: 7 e4!? and 7 a4.} Ba7 {[%emt 0:02:22]} 13. a4 {[%emt 0:02:50]} Qc7 $146 {[%emt 0:02:28]} (13... bxa4 14. Qxa4 O-O 15. Bb2 Qe7 16. Qb3 Bb8 17. b5 Nc5 18. Qc2 Rc8 19. bxa6 Nxa6 20. Bxa6 Rxa6 21. Rxa6 Bxa6 {½-½ Peptan,C (2399)-Cramling,P (2448) Medias Kings blitz (Women) 11th 2017 (3)}) 14. Bb2 {[%emt 0:01:48] White is slightly better.} Ng4 {[%emt 0:07:51]} ({Black should try} 14... bxa4 $1 $14 15. Rc1 (15. Rxa4 Bb8 $11) (15. Nxa4 O-O $11) 15... Qb8) 15. g3 $1 $16 {[%emt 0:12:10]} bxa4 {[%emt 0:24:42]} 16. Nxa4 {[%emt 0:02:24] A sharp opening} Rd8 {[%emt 0:04:57]} (16... Qc6 $16 {is a better defense.}) 17. Rc1 {[%emt 0:10:08]} (17. Qc1 $18 {has better winning chances.} Qd6 18. Qc3 (18. Bxg7 Rg8 $16)) 17... Qb8 {[%emt 0:03:11][%cal Og4e3]} 18. Nd4 {[%emt 0:03:21]} (18. Bxg7 Nxe3 19. fxe3 Rg8 $14) 18... Nge5 {[%emt 0:02:12]} 19. f4 {[%emt 0:06:59]} Ng6 {[%emt 0:01:47]} 20. Nc5 {[%emt 0:10:28]} (20. f5 {feels hotter.} exf5 21. Nxf5 O-O 22. Bxg7 Bxe3+ 23. Nxe3 Kxg7 24. Qd6) 20... Nxc5 {[%emt 0:12:37]} 21. bxc5 {[%emt 0:00:08][%csl Oc5][%cal Bb4c5,Bc5c6,Bc6c7][%mdl 32] White has a strong passed pawn} O-O {[%emt 0:00:41]} 22. Qb3 $36 {[%emt 0:19:25][%mdl 2048] White is on the roll.} Bd5 {[%emt 0:13:18]} 23. Qxb8 {[%emt 0:00:24]} Rxb8 {[%emt 0:00:10]} 24. Ba3 {[%emt 0:00:13]} a5 {[%emt 0:06:15]} (24... e5 $16 25. fxe5 Nxe5) 25. c6 $18 {[%emt 0:03:05]} (25. Nb5 Ra8 26. Nxa7 Rxa7) 25... Bxd4 {[%emt 0:00:57]} 26. exd4 {[%emt 0:00:14][%cal Oc6c7]} Rfc8 {[%emt 0:01:04] Black is weak on the dark squares} 27. c7 {[%emt 0:00:05]} Rb6 {[%emt 0:00:37]} (27... Ra8 $142 28. Rc5 Nf8) 28. Rb1 {[%emt 0:03:32]} Bb3 {[%emt 0:00:41]} 29. Bc5 {[%emt 0:00:50]} Rb7 {[%emt 0:00:10]} 30. Ba6 {[%emt 0:01:05] A strong pair of Bishops.} Rcxc7 {[%emt 0:00:06]} 31. Bxb7 {[%emt 0:00:09]} Rxb7 {[%emt 0:00:04]} 32. f5 {[%emt 0:01:32]} exf5 {[%emt 0:00:47]} 33. Rxf5 {[%emt 0:00:24] aiming for Bd6.} a4 {[%emt 0:00:31]} 34. d5 {[%emt 0:03:16]} (34. Re1 $16 {White threatens Re8+ and mate.} h6 35. Rf3) 34... f6 $11 {[%emt 0:01:00]} 35. Re1 {[%emt 0:02:02]} Bc2 {[%emt 0:01:55]} (35... h6 $11) 36. Rf2 $16 {[%emt 0:00:25]} Bb3 {[%emt 0:00:08] [#]} 37. d6 $1 {[%emt 0:04:04]} ({But not} 37. Re8+ Kf7 38. Rd8 Ne5 $11) 37... Rd7 {[%emt 0:00:06]} 38. Re8+ {[%emt 0:01:37]} Kf7 {[%emt 0:00:06]} 39. Rc8 {[%emt 0:00:28]} Ne5 {[%emt 0:01:09]} 40. Re2 {[%emt 0:01:33]} Ke6 {[%emt 0:01:04]} 41. Bb4 {[%emt 0:53:42]} Rb7 {[%emt 0:50:39]} 42. Re8+ {[%emt 0:00:00]} Kd5 {[%emt 0:00:00]} 43. Rd2+ {[%emt 0:00:00]} (43. Ba3 $16) 43... Kc4 {[%emt 0:00:00]} 44. Rxe5 {[%emt 0:00:00]} fxe5 {[%emt 0:00:00]} 45. d7 $2 {[%emt 0:00:00][%mdl 8192] [#]} (45. Ba3 $11 Rd7 46. Bb2) 45... Rxd7 $3 $19 {[%emt 0:00:00][%mdl 512]} 46. Rxd7 {[%emt 0:00:00]} (46. Ba5 Ra7) 46... Kxb4 {[%emt 0:00:00][%mdl 4096] Endgame KR-KB} 47. Rb7+ {[%emt 0:00:00]} Kc3 {[%emt 0:00:00]} 48. Rc7+ {[%emt 0:00:00]} Kb2 {[%emt 0:00:00] and ...a3 should not be overlooked} 49. Rxg7 {[%emt 0:00:00]} a3 {[%emt 0:00:00] ( -> ...a2)} 50. Rxh7 {[%emt 0:00:00]} a2 {[%emt 0:00:00] Black mates.} 51. Ra7 {[%emt 0:00:00]} a1=Q+ {[%emt 0:00:00]} (51... a1=B 52. h4 Kb1 53. Rd7 $11) 52. Rxa1 {[%emt 0:00:00]} Kxa1 {[%emt 0:00:00] KB-KPP} 53. Kf2 {[%emt 0:00:00]} Kb2 {[%emt 0:00:00]} 54. Ke3 {[%emt 0:00:00] [#]} Bc2 $1 {[%emt 0:00:00]} 55. g4 {[%emt 0:03:14]} Kc3 {[%emt 0:00:00]} 56. h4 {[%emt 0:00:04]} Kc4 {[%emt 0:00:00]} 57. h5 {[%emt 0:00:39]} Kd5 {[%emt 0:00:00]} 58. g5 {[%emt 0:00:05]} Bd1 {[%emt 0:00:00] Never resign too early!   Weighted Error Value: White=0.56/Black=0.20 (precise)   Loses game:     	White=1     	---        Mistake:       	White=3     	Black=5      Inaccurate:     	White=1     	Black=3      OK:         	White=12    	Black=14     Best:        	---       	Black=3      Strong:       	White=2     	---        Brilliant:      	---       	Black=1} 0-1

[Event "4NCL Div 1 2024-25"]
[Site "England"]
[Date "2025.01.25"]
[Round "3.45"]
[White "Li, Harry"]
[Black "Birtwistle, Nigel"]
[Result "1/2-1/2"]
[Annotator "TA"]
[ECO "B36"]
[WhiteElo "2203"]
[BlackElo "2041"]
[PlyCount "45"]
[EventDate "2024.11.23"]
[EventType "team-tourn"]
[EventCountry "ENG"]
[SourceTitle "playchess.com"]
[Source "ChessBase"]
[SourceQuality "1"]
[TimeControl "40/6000+30:3000+30"]

{[%evp 20,45,43,43,54,44,54,37,45,24,28,18,33,23,35,9,12,0,16,21,45,12,33,27,33,40,25,-166]} 1. e4 {[%emt 0:10:02]} c5 {[%emt 0:10:30]} 2. Nf3 {[%emt 0:00:04]} g6 {[%emt 0:00:09]} 3. d4 {[%emt 0:00:05]} cxd4 {[%emt 0:00:09]} 4. Nxd4 {[%emt 0:00:04]} Nc6 {[%emt 0:00:55]} 5. c4 {[%emt 0:00:06]} Nf6 {[%emt 0:00:50]} 6. Nc3 {[%emt 0:00:05]} Nxd4 {[%emt 0:00:37]} 7. Qxd4 {[%emt 0:00:04]} d6 {[%emt 0:00:14]} 8. Be2 {[%emt 0:00:11]} Bg7 {[%emt 0:00:18]} 9. O-O {[%emt 0:00:04]} O-O {[%emt 0:00:27]} 10. Qd3 {[%emt 0:00:02]} Be6 {[%emt 0:04:26]} 11. Be3 {[%emt 0:01:44]} a5 {[%emt 0:03:25] B36: Sicilian: Maroczy Bind: Gurgenidze System.} 12. b3 {[%emt 0:00:26]} Nd7 {[%emt 0:02:30][%cal Oa5a4]} 13. Qd2 {[%emt 0:04:53]} Nc5 {[%emt 0:04:57] White is slightly better.} 14. f3 {[%emt 0:11:22]} Qb6 {[%emt 0:04:10]} 15. Rab1 {[%emt 1:18:48]} Qb4 {[%emt 0:14:03]} 16. Rfc1 {[%emt 0:00:00]} Rfc8 {[%emt 0:03:18]} 17. Rc2 {[%emt 0:00:00]} a4 $146 {[%emt 0:19:49]} (17... Bxc3 {simplifies} 18. Qxc3 Qxc3 19. Rxc3 f6) (17... f5 18. Qc1 fxe4 19. a3 Qb6 20. b4 a4 21. bxc5 Qc6 22. cxd6 exd6 {1-0 Abdulla,K (2151)-Bauer,M (1888) Wch U16 Girls 2009 (6)}) 18. bxa4 {[%emt 0:00:00]} Qa5 {[%emt 0:10:02]} 19. Nd5 {[%emt 0:00:00]} Bxd5 {[%emt 0:08:55]} 20. cxd5 {[%emt 0:00:00] Strongly threatening Qxa5.} (20. Qxa5 $5 Rxa5 21. cxd5 $11) 20... Qxa4 {[%emt 0:05:28]} 21. g3 {[%emt 0:00:00]} Rc7 {[%emt 0:02:37][%cal Oc5e4] [#] Threatens to win with ...Nxe4!.} 22. Bb5 {[%emt 0:00:00]} Qa3 {[%emt 0:00:38][%cal Oc5e4]} 23. Bf1 $2 {[%emt 0:00:00] Weighted Error Value: White=0.09 (flawless) /Black=0.08 (flawless)   Loses game:     	White=1     	---        Inaccurate:     	White=2     	---        OK:         	White=4     	Black=5      Best:        	---       	Black=1} (23. Qe2 $11 {and White is okay.}) 1/2-1/2

[Event "4NCL Div 1 2024-25"]
[Site "England"]
[Date "2025.01.25"]
[Round "3.47"]
[White "Nakara Husain"]
[Black "Milson, Samuel A"]
[Result "1/2-1/2"]
[Annotator "TA"]
[ECO "C02"]
[WhiteElo "1663"]
[BlackElo "2069"]
[PlyCount "42"]
[EventDate "2024.11.23"]
[EventType "team-tourn"]
[EventCountry "ENG"]
[SourceTitle "playchess.com"]
[Source "ChessBase"]
[SourceQuality "1"]
[TimeControl "40/6000+30:3000+30"]

{[%evp 20,42,0,-2,-13,-28,-20,-26,-20,-32,-22,-31,-42,-41,-45,-43,-33,-22,0,-37,0,-52,0,-33,0]} 1. e4 {[%emt 0:10:07]} e6 {[%emt 0:10:12]} 2. d4 {[%emt 0:00:04]} d5 {[%emt 0:00:10]} 3. e5 {[%emt 0:00:19]} c5 {[%emt 0:00:20]} 4. c3 {[%emt 0:00:05]} Nc6 {[%emt 0:00:12]} 5. Nf3 {[%emt 0:00:21]} Bd7 {[%emt 0:00:17]} 6. a3 {[%emt 0:04:14]} Qb6 {[%emt 0:05:32]} 7. Be2 {[%emt 0:06:31]} Nh6 {[%emt 0:19:47]} 8. b4 {[%emt 0:13:11]} cxd4 {[%emt 0:00:43]} 9. cxd4 {[%emt 0:00:45]} Nf5 {[%emt 0:00:58]} 10. Bb2 {[%emt 0:00:26]} Be7 {[%emt 0:01:51]} 11. O-O {[%emt 0:03:34]} h5 {[%emt 0:03:17] C02: French: Advance Variation.} 12. b5 {[%emt 0:10:27]} Na5 {[%emt 0:03:07]} 13. Nc3 {[%emt 0:00:39]} Rc8 {[%emt 0:03:20] Black has an edge.} 14. Na4 {[%emt 0:04:32]} Qd8 {[%emt 0:04:24]} 15. Rc1 {[%emt 0:08:44]} Rxc1 {[%emt 0:13:10]} 16. Qxc1 {[%emt 0:02:15]} a6 $146 {[%emt 0:02:31]} (16... b6 17. Nd2 a6 18. Nc3 Nxd4 19. bxa6 Nxe2+ 20. Nxe2 Bb5 21. Bc3 Bxe2 22. Bxa5 O-O {½-½ Nanu,C (2417)-Itkis,B (2442) Bucharest Astral op 2001 (6)}) 17. Nc3 {[%emt 0:05:18]} Qb6 {[%emt 0:06:36] White must now prevent ...Nb3.} 18. Na4 {[%emt 0:07:28]} Qd8 {[%emt 0:00:46]} 19. Nc3 {[%emt 0:07:15]} Qb6 {[%emt 0:09:11]} 20. Na4 {[%emt 0:06:49]} Qd8 {[%emt 0:02:40]} 21. Nc3 {[%emt 0:01:54]} Qb6 {[%emt 0:03:59] Weighted Error Value: White=0.04 (flawless) /Black=0.11 (very precise)   Inaccurate:     	---       	Black=1      OK:         	White=1     	Black=5      Best:        	White=5     	---} 1/2-1/2

[Event "4NCL Div 1 2024-25"]
[Site "England"]
[Date "2025.01.25"]
[Round "3.48"]
[White "McCarthy, Kevin C"]
[Black "Carroll, Thomas"]
[Result "0-1"]
[Annotator "TA"]
[ECO "B13"]
[WhiteElo "1954"]
[BlackElo "2126"]
[PlyCount "145"]
[EventDate "2024.11.23"]
[EventType "team-tourn"]
[EventCountry "ENG"]
[SourceTitle "playchess.com"]
[Source "ChessBase"]
[SourceQuality "1"]
[TimeControl "40/6000+30:3000+30"]

{[%evp 9,145,0,4,-6,-8,-21,-14,-29,-18,-26,-17,-28,-6,-20,-10,0,32,-36,-29,-25,-25,-38,-27,-46,31,28,28,-12,-1,-22,-22,-22,-22,-29,-22,-22,-22,-22,-22,-33,-22,-23,-23,-19,-11,-23,-23,-23,-16,-59,0,0,0,0,0,-18,0,0,0,0,0,-3,-3,-10,0,-10,0,-41,0,0,0,0,0,0,0,0,7,0,71,74,80,0,0,0,0,0,0,-54,0,0,0,-101,-94,-112,-106,-101,-100,-81,-38,-38,-38,-38,-38,-38,0,0,0,0,0,-45,0,-271,-246,-275,-262,-238,-218,-295,-295,-226,-192,-205,-215,-201,-197,-198,-197,-378,-378,-443,-418,-480,-467,-678,-680,-756,-755,-652]} 1. d4 {[%emt 0:10:21]} Nf6 {[%emt 0:10:07]} 2. Nc3 {[%emt 0:00:33]} d5 {[%emt 0:00:08]} 3. Bf4 {[%emt 0:00:05]} c5 {[%emt 0:00:27]} 4. e3 {[%emt 0:00:09]} cxd4 {[%emt 0:00:37]} 5. exd4 {[%emt 0:00:56]} a6 {[%emt 0:00:10]} 6. Bd3 {[%emt 0:00:22] B13: Caro-Kann: Exchange Variation and Panov-Botvinnik Attack.} Nc6 {[%emt 0:00:51]} 7. Nge2 {[%emt 0:01:20] 7.Nce2 is the fancy move.} e6 {[%emt 0:03:37]} 8. a3 {[%emt 0:00:13] The position is equal.} Bd7 $146 {[%emt 0:02:09]} (8... Be7 9. O-O O-O 10. b4 Bd7 11. Qb1 Na7 12. a4 Nc6 13. Na2 a5 14. b5 Na7 {0-1 Rodriguez Vila,A (2469)-Vazquez,G (2510) Florianopolis op 6th 2020 (10.6)}) 9. O-O {[%emt 0:00:16]} Rc8 {[%emt 0:01:39]} 10. Qd2 {[%emt 0:00:52]} Qb6 {[%emt 0:04:41]} 11. Na4 {[%emt 0:04:32]} Qa7 {[%emt 0:00:23]} 12. Be3 {[%emt 0:07:57]} Ng4 {[%emt 0:04:40]} 13. Nac3 {[%emt 0:03:58]} (13. Nc5 $14) 13... Nxe3 {[%emt 0:03:28]} 14. Qxe3 {[%emt 0:01:52]} Be7 {[%emt 0:02:16]} 15. Nd1 {[%emt 0:05:37]} Na5 {[%emt 0:07:17]} 16. c3 {[%emt 0:20:18]} Bb5 {[%emt 0:09:59]} (16... b5 $15) 17. Bxb5+ $14 {[%emt 0:01:53]} axb5 {[%emt 0:00:06]} 18. Qg3 {[%emt 0:00:23]} O-O {[%emt 0:02:34]} 19. Ne3 {[%emt 0:00:11]} Nc4 {[%emt 0:03:16]} 20. Nxc4 {[%emt 0:00:22]} bxc4 {[%emt 0:00:17]} 21. Qe3 {[%emt 0:03:12]} Qa4 {[%emt 0:06:21]} 22. Qd2 {[%emt 0:02:01]} Rc6 {[%emt 0:02:14]} 23. g3 {[%emt 0:04:59]} Rb6 {[%emt 0:01:58]} 24. Rfb1 {[%emt 0:03:31]} Ra8 {[%emt 0:01:11]} 25. Nc1 {[%emt 0:00:54]} g6 {[%emt 0:08:40]} 26. Na2 {[%emt 0:02:41] White is weak on the light squares} Kg7 {[%emt 0:05:38]} 27. Qc1 {[%emt 0:02:57]} h5 {[%emt 0:03:40]} 28. h4 {[%emt 0:01:26]} Rba6 {[%emt 0:02:30]} 29. Qd1 {[%emt 0:02:37]} Qc6 {[%emt 0:08:03]} (29... Qxd1+ $15 30. Rxd1 Kf8) 30. Nb4 $11 {[%emt 0:00:19]} Bxb4 {[%emt 0:00:08]} 31. axb4 {[%emt 0:00:11]} Ra2 {[%emt 0:06:13]} 32. Qe1 {[%emt 0:03:52]} Qa4 {[%emt 0:02:53]} 33. Rxa2 {[%emt 0:02:57]} Qxa2 {[%emt 0:00:03][%mdl 4096] Endgame KQR-KQR} 34. Kg2 {[%emt 0:00:29]} Kf8 {[%emt 0:02:28]} 35. Kf3 {[%emt 0:02:35]} Ra6 {[%emt 0:00:48]} 36. Kf4 {[%emt 0:01:55]} f6 {[%emt 0:02:47]} 37. Qd1 {[%emt 0:03:09]} Kf7 {[%emt 0:00:38][%cal Oe6e5]} (37... Qa4 38. Qxa4 Rxa4 39. f3 Kf7) 38. Qc2 {[%emt 0:00:14]} Rd6 {[%emt 0:01:13][%cal Oe6e5]} 39. Re1 {[%emt 0:01:12]} Qa8 {[%emt 0:00:50]} 40. Kf3 {[%emt 0:00:56]} Ra6 {[%emt 0:02:19]} 41. Qd2 {[%emt 0:51:57]} Kg7 {[%emt 0:21:35]} 42. Qf4 {[%emt 0:00:00]} Qd8 {[%emt 0:01:17] Wards off Qc7+} 43. Re2 {[%emt 0:00:00]} (43. Kg2 {simplifies} Qe7 44. Qe3 Qd7 45. Qe2) 43... g5 {[%emt 0:02:01]} (43... Qe7 $11) 44. hxg5 $16 {[%emt 0:00:00]} fxg5 {[%emt 0:00:08]} 45. Qe3 {[%emt 0:00:00]} ({Better is} 45. Qc1 $1 $16) 45... Qf6+ $11 {[%emt 0:00:50]} 46. Kg2 {[%emt 0:00:00]} Kf7 {[%emt 0:01:21]} 47. f3 {[%emt 0:00:00]} Ra1 {[%emt 0:02:06]} 48. Re1 {[%emt 0:00:00]} (48. g4 $1 $11) 48... Ra2 {[%emt 0:00:40]} ({Black should play} 48... Rxe1 $15 49. Qxe1 Qf5) 49. Re2 {[%emt 0:00:00]} Qf5 {[%emt 0:00:35]} 50. Rf2 {[%emt 0:00:00] [#]} (50. Qc1 $11) 50... Ra1 $1 $17 {[%emt 0:03:35]} 51. Re2 {[%emt 0:00:00]} Rd1 {[%emt 0:01:38] Black is more active.} 52. Rd2 {[%emt 0:00:00]} Rb1 {[%emt 0:00:29]} 53. Re2 {[%emt 0:00:00]} Ra1 $40 {[%emt 0:04:55][%mdl 128] White needs to defend precisely.} 54. Qe5 {[%emt 0:01:59]} Qxe5 {[%emt 0:01:20]} 55. Rxe5 $15 {[%emt 0:01:31] KR-KR} Kf6 {[%emt 0:01:32]} 56. Re2 {[%emt 0:00:05]} Ra8 {[%emt 0:02:17]} 57. Kh3 {[%emt 0:01:26]} Ke7 {[%emt 0:01:06]} 58. Re5 {[%emt 0:00:52]} Rg8 {[%emt 0:00:38]} 59. Re2 {[%emt 0:00:39]} Kd6 {[%emt 0:00:20]} 60. b3 $2 {[%emt 0:00:25][%mdl 8192]} cxb3 $19 {[%emt 0:01:09] and ...Rc8 would now be decisive} 61. Rb2 {[%emt 0:00:43]} Kc6 {[%emt 0:00:23]} 62. Rxb3 {[%emt 0:00:05] [#]} Kb5 $1 {[%emt 0:00:14]} 63. Ra3 {[%emt 0:01:20]} Kc4 {[%emt 0:00:50]} 64. Kg2 {[%emt 0:00:40]} Kd3 {[%emt 0:01:17]} 65. b5 {[%emt 0:01:29]} Rc8 {[%emt 0:01:01]} 66. Ra7 {[%emt 0:00:20]} Rc7 {[%emt 0:00:30]} (66... Rxc3 67. Rxb7 g4 (67... Kxd4 68. Re7 $15) 68. fxg4 hxg4 (68... Kxd4 $2 69. gxh5 Rc2+ 70. Kh3 $18) 69. Re7 $11) 67. b6 {[%emt 0:00:04]} Rd7 {[%emt 0:00:16]} (67... Rxc3 68. Rxb7 g4 (68... Kxd4 69. Rg7 $11) 69. fxg4 hxg4 (69... Kxd4 $2 {loses.} 70. gxh5 Rc2+ 71. Kh3 $18) 70. Rg7 $15) 68. Ra3 $2 {[%emt 0:01:25]} (68. Kf2 {is a better defense.}) 68... Rd6 {[%emt 0:00:42]} 69. Rb3 {[%emt 0:00:31]} Kc2 {[%emt 0:00:10]} 70. Rb5 {[%emt 0:00:23]} Kxc3 {[%emt 0:00:10] Black is clearly winning.} 71. Rc5+ {[%emt 0:00:27]} (71. Kf1 $142) 71... Kxd4 {[%emt 0:00:44]} 72. Rc7 {[%emt 0:00:12]} Rxb6 {[%emt 0:00:07]} 73. Rg7 {[%emt 0:00:06] Weighted Error Value: White=0.21 (precise) /Black=0.12 (very precise)   Loses game:     	White=1     	---        Mistake:       	White=6     	Black=4      Inaccurate:     	White=5     	Black=5      OK:         	White=23    	Black=27     Best:        	White=4     	Black=3      Strong:       	---       	Black=1} 0-1